[Event "Titled Tuesday Blitz July 26 Late 2022"]
[White "Estrada Nieto, Julian"]
[Black "Steinberg, Nitzan"]
[WhiteFideId "5101018"]
[BlackFideId "2801795"]
[WhiteElo "2252"]
[BlackElo "2471"]
[Result "0-1"]
[Round "01"]
[TimeControl "180+1"]
[Date "2022.07.26"]
[WhiteClock "0:00:09"]
[BlackClock "0:01:25"]

1. e4 {[%clk 0:03:00]}  c5 {[%clk 0:02:58]} 2. Nf3 {[%clk 0:03:00]}  e6 {[%clk 0:02:59]} 3. c3 {[%clk 0:03:00]}  Nf6 {[%clk 0:02:59]} 4. e5 {[%clk 0:03:00]}  Nd5 {[%clk 0:02:59]} 5. Bc4 {[%clk 0:03:01]}  d6 {[%clk 0:02:56]} 6. d4 {[%clk 0:03:01]}  cxd4 {[%clk 0:02:55]} 7. cxd4 {[%clk 0:03:02]}  Be7 {[%clk 0:02:55]} 8. O-O {[%clk 0:03:01]}  O-O {[%clk 0:02:55]} 9. Qe2 {[%clk 0:03:01]}  b6 {[%clk 0:02:55]} 10. Bxd5 {[%clk 0:02:57]}  exd5 {[%clk 0:02:54]} 11. Rd1 {[%clk 0:02:57]}  Re8 {[%clk 0:02:43]} 12. Nc3 {[%clk 0:02:56]}  Bb7 {[%clk 0:02:44]} 13. Bf4 {[%clk 0:02:54]}  Bf8 {[%clk 0:02:38]} 14. Qd3 {[%clk 0:02:47]}  h6 {[%clk 0:02:33]} 15. Rac1 {[%clk 0:02:36]}  Na6 {[%clk 0:02:30]} 16. a3 {[%clk 0:02:06]}  Qd7 {[%clk 0:02:23]} 17. Bg3 {[%clk 0:01:54]}  Nc7 {[%clk 0:02:13]} 18. exd6 {[%clk 0:01:50]}  Bxd6 {[%clk 0:02:14]} 19. Ne5 {[%clk 0:01:48]}  Bxe5 {[%clk 0:02:14]} 20. Bxe5 {[%clk 0:01:41]}  Ne6 {[%clk 0:02:14]} 21. Re1 {[%clk 0:01:41]}  Rac8 {[%clk 0:02:09]} 22. Ne2 {[%clk 0:01:33]}  f6 {[%clk 0:02:06]} 23. Bg3 {[%clk 0:01:32]}  Ng5 {[%clk 0:02:03]} 24. Nf4 {[%clk 0:01:14]}  Ne4 {[%clk 0:02:01]} 25. f3 {[%clk 0:01:10]}  Nd6 {[%clk 0:01:59]} 26. Nh5 {[%clk 0:00:53]}  Qf5 {[%clk 0:01:42]} 27. Qxf5 {[%clk 0:00:41]}  Nxf5 {[%clk 0:01:43]} 28. Bf2 {[%clk 0:00:41]}  Rxe1+ {[%clk 0:01:38]} 29. Rxe1 {[%clk 0:00:38]}  Kf7 {[%clk 0:01:36]} 30. g4 {[%clk 0:00:36]}  Nd6 {[%clk 0:01:36]} 31. Bg3 {[%clk 0:00:30]}  Nb5 {[%clk 0:01:34]} 32. Bf2 {[%clk 0:00:20]}  Ba6 {[%clk 0:01:26]} 33. a4 {[%clk 0:00:17]}  Nd6 {[%clk 0:01:25]} 34. Bg3 {[%clk 0:00:17]}  Nc4 {[%clk 0:01:25]} 35. b3 {[%clk 0:00:16]}  Nd2 {[%clk 0:01:25]} 36. Kf2 {[%clk 0:00:14]}  Rc2 {[%clk 0:01:26]} 37. Ke3 {[%clk 0:00:10]}  Nf1+ {[%clk 0:01:25]} 38. Kf4 {[%clk 0:00:09]}  g5+ {[%clk 0:01:25]} 0-1


[Site "https://www.chess.com"]

[Event "Titled Tuesday Blitz July 26 Late 2022"]
[White "Golubev, Mikhail"]
[Black "Andreikin, Dmitry"]
[WhiteFideId "14100983"]
[BlackFideId "4158814"]
[WhiteElo "2374"]
[BlackElo "2736"]
[Result "0-1"]
[Round "01"]
[TimeControl "180+1"]
[Date "2022.07.26"]
[WhiteClock "0:00:49"]
[BlackClock "0:02:12"]

1. e4 {[%clk 0:03:00]}  c5 {[%clk 0:02:59]} 2. Nf3 {[%clk 0:03:00]}  e6 {[%clk 0:03:00]} 3. d4 {[%clk 0:03:00]}  cxd4 {[%clk 0:03:01]} 4. Nxd4 {[%clk 0:03:00]}  Nc6 {[%clk 0:03:01]} 5. Nc3 {[%clk 0:02:59]}  a6 {[%clk 0:03:02]} 6. Be3 {[%clk 0:02:58]}  Nf6 {[%clk 0:03:01]} 7. Bd3 {[%clk 0:02:55]}  Qc7 {[%clk 0:03:01]} 8. O-O {[%clk 0:02:54]}  Bd6 {[%clk 0:03:01]} 9. f4 {[%clk 0:02:50]}  Bc5 {[%clk 0:03:00]} 10. Nf5 {[%clk 0:02:49]}  Bxe3+ {[%clk 0:03:00]} 11. Nxe3 {[%clk 0:02:48]}  d6 {[%clk 0:03:01]} 12. Qd2 {[%clk 0:02:39]}  O-O {[%clk 0:03:01]} 13. a3 {[%clk 0:02:17]}  b5 {[%clk 0:03:00]} 14. Rae1 {[%clk 0:01:53]}  Bb7 {[%clk 0:03:01]} 15. g4 {[%clk 0:01:49]}  Rad8 {[%clk 0:02:57]} 16. g5 {[%clk 0:01:47]}  Nd7 {[%clk 0:02:57]} 17. b4 {[%clk 0:01:30]}  Nb6 {[%clk 0:02:49]} 18. Ng4 {[%clk 0:01:17]}  Nd4 {[%clk 0:02:32]} 19. f5 {[%clk 0:01:06]}  exf5 {[%clk 0:02:27]} 20. exf5 {[%clk 0:01:06]}  Nc4 {[%clk 0:02:12]} 21. Qf4 {[%clk 0:00:49]}  Qb6 {[%clk 0:02:12]} 0-1


[Site "https://www.chess.com"]

[Event "Titled Tuesday Blitz July 26 Late 2022"]
[White "Gonzalez Vega, Alejandro"]
[Black "Arencibia Monduy, Antonio"]
[WhiteFideId "3510042"]
[BlackFideId "3507939"]
[WhiteElo "2235"]
[BlackElo "2598"]
[Result "1-0"]
[Round "01"]
[TimeControl "180+1"]
[Date "2022.07.27"]
[WhiteClock "0:00:03"]
[BlackClock "0:00:01"]

1. e4 {[%clk 0:02:54]}  e6 {[%clk 0:03:00]} 2. Nf3 {[%clk 0:02:53]}  d5 {[%clk 0:03:00]} 3. e5 {[%clk 0:02:51]}  c5 {[%clk 0:02:59]} 4. b4 {[%clk 0:02:48]}  c4 {[%clk 0:02:49]} 5. c3 {[%clk 0:02:44]}  f5 {[%clk 0:02:44]} 6. d3 {[%clk 0:02:41]}  cxd3 {[%clk 0:02:43]} 7. Bxd3 {[%clk 0:02:40]}  Qc7 {[%clk 0:02:41]} 8. O-O {[%clk 0:02:33]}  Nc6 {[%clk 0:02:27]} 9. Re1 {[%clk 0:02:31]}  Nge7 {[%clk 0:02:19]} 10. b5 {[%clk 0:02:27]}  Na5 {[%clk 0:02:19]} 11. Qe2 {[%clk 0:02:16]}  Ng6 {[%clk 0:02:17]} 12. h4 {[%clk 0:02:07]}  Be7 {[%clk 0:01:56]} 13. h5 {[%clk 0:02:06]}  Nf8 {[%clk 0:01:46]} 14. Bd2 {[%clk 0:02:00]}  Bd7 {[%clk 0:01:44]} 15. Nd4 {[%clk 0:01:58]}  O-O-O {[%clk 0:01:31]} 16. a4 {[%clk 0:01:49]}  Be8 {[%clk 0:01:29]} 17. Na3 {[%clk 0:01:46]}  Bf7 {[%clk 0:01:29]} 18. b6 {[%clk 0:01:34]}  Qxb6 {[%clk 0:01:06]} 19. Rab1 {[%clk 0:01:33]}  Qc5 {[%clk 0:01:04]} 20. Nac2 {[%clk 0:01:25]}  Nc4 {[%clk 0:00:55]} 21. Rb5 {[%clk 0:01:13]}  Qc7 {[%clk 0:00:52]} 22. Bxc4 {[%clk 0:01:06]}  Qxc4 {[%clk 0:00:48]} 23. Qxc4+ {[%clk 0:00:55]}  dxc4 {[%clk 0:00:48]} 24. a5 {[%clk 0:00:51]}  Nd7 {[%clk 0:00:44]} 25. f4 {[%clk 0:00:50]}  Nc5 {[%clk 0:00:44]} 26. Reb1 {[%clk 0:00:42]}  Rd7 {[%clk 0:00:43]} 27. Be3 {[%clk 0:00:37]}  Ne4 {[%clk 0:00:37]} 28. Bd2 {[%clk 0:00:30]}  a6 {[%clk 0:00:36]} 29. Rb6 {[%clk 0:00:22]}  Bc5 {[%clk 0:00:36]} 30. Be1 {[%clk 0:00:19]}  Bxb6 {[%clk 0:00:33]} 31. Rxb6 {[%clk 0:00:19]}  Re8 {[%clk 0:00:32]} 32. Ne3 {[%clk 0:00:19]}  Rc7 {[%clk 0:00:22]} 33. h6 {[%clk 0:00:15]}  gxh6 {[%clk 0:00:21]} 34. g4 {[%clk 0:00:15]}  Rg8 {[%clk 0:00:21]} 35. Kh2 {[%clk 0:00:13]}  fxg4 {[%clk 0:00:20]} 36. f5 {[%clk 0:00:13]}  exf5 {[%clk 0:00:19]} 37. e6 {[%clk 0:00:13]}  Be8 {[%clk 0:00:17]} 38. Nexf5 {[%clk 0:00:12]}  Bg6 {[%clk 0:00:12]} 39. Nd6+ {[%clk 0:00:12]}  Nxd6 {[%clk 0:00:12]} 40. Rxd6 {[%clk 0:00:11]}  Re8 {[%clk 0:00:12]} 41. Bg3 {[%clk 0:00:11]}  Rce7 {[%clk 0:00:11]} 42. Rb6 {[%clk 0:00:09]}  Rc7 {[%clk 0:00:06]} 43. Bxc7 {[%clk 0:00:09]}  Kxc7 {[%clk 0:00:07]} 44. Kg3 {[%clk 0:00:07]}  h5 {[%clk 0:00:07]} 45. Kh4 {[%clk 0:00:07]}  Rf8 {[%clk 0:00:07]} 46. Rb2 {[%clk 0:00:06]}  Be4 {[%clk 0:00:03]} 47. Re2 {[%clk 0:00:05]}  Bf3 {[%clk 0:00:02]} 48. Re5 {[%clk 0:00:05]}  Bc6 {[%clk 0:00:01]} 49. Rg5 {[%clk 0:00:05]}  Re8 {[%clk 0:00:01]} 50. Kxh5 {[%clk 0:00:05]}  Kd6 {[%clk 0:00:01]} 51. Kxg4 {[%clk 0:00:05]}  Bd5 {[%clk 0:00:01]} 52. Rg7 {[%clk 0:00:04]}  Bxe6+ {[%clk 0:00:01]} 53. Nxe6 {[%clk 0:00:03]}  Rxe6 {[%clk 0:00:01]} 54. Rxb7 {[%clk 0:00:03]} 1-0


[Site "https://www.chess.com"]

[Event "Titled Tuesday Blitz July 26 Late 2022"]
[White "Grischuk, Alexander"]
[Black "Omariev, Maksim"]
[WhiteFideId "4126025"]
[BlackFideId "4193423"]
[WhiteElo "2762"]
[BlackElo "2513"]
[Result "1-0"]
[Round "01"]
[TimeControl "180+1"]
[Date "2022.07.26"]
[WhiteClock "0:00:45"]
[BlackClock "0:00:03"]

1. d4 {[%clk 0:02:40]}  d5 {[%clk 0:02:54]} 2. Nf3 {[%clk 0:02:39]}  Nf6 {[%clk 0:02:53]} 3. Bf4 {[%clk 0:02:39]}  c5 {[%clk 0:02:46]} 4. e3 {[%clk 0:02:39]}  Nc6 {[%clk 0:02:46]} 5. Nbd2 {[%clk 0:02:39]}  cxd4 {[%clk 0:02:35]} 6. exd4 {[%clk 0:02:40]}  Bf5 {[%clk 0:02:34]} 7. Bb5 {[%clk 0:02:40]}  Rc8 {[%clk 0:02:33]} 8. Ne5 {[%clk 0:02:35]}  Qb6 {[%clk 0:02:26]} 9. Bxc6+ {[%clk 0:02:33]}  bxc6 {[%clk 0:02:25]} 10. Nb3 {[%clk 0:02:33]}  e6 {[%clk 0:02:21]} 11. g4 {[%clk 0:02:33]}  Be4 {[%clk 0:02:17]} 12. f3 {[%clk 0:02:33]}  Bg6 {[%clk 0:02:17]} 13. h4 {[%clk 0:02:32]}  h6 {[%clk 0:01:52]} 14. Nxg6 {[%clk 0:02:30]}  fxg6 {[%clk 0:01:53]} 15. Qd3 {[%clk 0:02:27]}  Kf7 {[%clk 0:01:53]} 16. h5 {[%clk 0:02:12]}  g5 {[%clk 0:01:46]} 17. Be5 {[%clk 0:02:03]}  Be7 {[%clk 0:01:40]} 18. Qg6+ {[%clk 0:01:25]}  Kg8 {[%clk 0:01:17]} 19. O-O {[%clk 0:01:25]}  Qd8 {[%clk 0:00:47]} 20. Rae1 {[%clk 0:01:21]}  Qe8 {[%clk 0:00:47]} 21. Qd3 {[%clk 0:01:15]}  Kf7 {[%clk 0:00:46]} 22. Qg6+ {[%clk 0:01:12]}  Kg8 {[%clk 0:00:45]} 23. Bxf6 {[%clk 0:00:58]}  Bxf6 {[%clk 0:00:40]} 24. c3 {[%clk 0:00:59]}  Kf8 {[%clk 0:00:08]} 25. Nc5 {[%clk 0:00:57]}  e5 {[%clk 0:00:03]} 26. dxe5 {[%clk 0:00:55]}  Qxg6 {[%clk 0:00:03]} 27. hxg6 {[%clk 0:00:56]}  Be7 {[%clk 0:00:03]} 28. Ne6+ {[%clk 0:00:52]}  Kg8 {[%clk 0:00:03]} 29. f4 {[%clk 0:00:51]}  gxf4 {[%clk 0:00:02]} 30. Rxf4 {[%clk 0:00:52]}  Re8 {[%clk 0:00:02]} 31. Rf7 {[%clk 0:00:47]}  Bf8 {[%clk 0:00:03]} 32. Ref1 {[%clk 0:00:45]} 1-0


[Site "https://www.chess.com"]

[Event "Titled Tuesday Blitz July 26 Late 2022"]
[White "Haitin, Ilja"]
[Black "Makarian, Rudik"]
[WhiteFideId "4501764"]
[BlackFideId "44105681"]
[WhiteElo "2209"]
[BlackElo "2403"]
[Result "1/2-1/2"]
[Round "01"]
[TimeControl "180+1"]
[Date "2022.07.27"]
[WhiteClock "0:00:16"]
[BlackClock "0:00:11"]

1. d4 {[%clk 0:02:59]}  Nf6 {[%clk 0:02:55]} 2. Nf3 {[%clk 0:02:58]}  c5 {[%clk 0:02:56]} 3. c3 {[%clk 0:02:58]}  g6 {[%clk 0:02:55]} 4. Bg5 {[%clk 0:02:56]}  Bg7 {[%clk 0:02:55]} 5. Nbd2 {[%clk 0:02:56]}  b6 {[%clk 0:02:56]} 6. dxc5 {[%clk 0:02:54]}  bxc5 {[%clk 0:02:56]} 7. e4 {[%clk 0:02:53]}  O-O {[%clk 0:02:51]} 8. Bd3 {[%clk 0:02:52]}  d6 {[%clk 0:02:51]} 9. O-O {[%clk 0:02:52]}  Nc6 {[%clk 0:02:51]} 10. h3 {[%clk 0:02:51]}  Rb8 {[%clk 0:02:51]} 11. Rb1 {[%clk 0:02:50]}  Be6 {[%clk 0:02:48]} 12. Bxf6 {[%clk 0:02:42]}  Bxf6 {[%clk 0:02:47]} 13. Bc4 {[%clk 0:02:42]}  Qc8 {[%clk 0:02:42]} 14. Qe2 {[%clk 0:02:40]}  Na5 {[%clk 0:02:34]} 15. Bxe6 {[%clk 0:02:39]}  Qxe6 {[%clk 0:02:35]} 16. b4 {[%clk 0:02:34]}  cxb4 {[%clk 0:02:35]} 17. cxb4 {[%clk 0:02:33]}  Nc6 {[%clk 0:02:35]} 18. b5 {[%clk 0:02:32]}  Nd4 {[%clk 0:02:35]} 19. Nxd4 {[%clk 0:02:31]}  Bxd4 {[%clk 0:02:36]} 20. Qc4 {[%clk 0:02:26]}  Bc5 {[%clk 0:02:26]} 21. Qxe6 {[%clk 0:02:26]}  fxe6 {[%clk 0:02:27]} 22. a4 {[%clk 0:02:21]}  Rbc8 {[%clk 0:02:23]} 23. Nf3 {[%clk 0:02:09]}  Bb6 {[%clk 0:02:12]} 24. Rfc1 {[%clk 0:02:08]}  e5 {[%clk 0:02:09]} 25. Kf1 {[%clk 0:02:05]}  h6 {[%clk 0:02:07]} 26. Ke2 {[%clk 0:02:04]}  Kf7 {[%clk 0:02:08]} 27. Ne1 {[%clk 0:02:03]}  Ke6 {[%clk 0:02:08]} 28. f3 {[%clk 0:02:03]}  h5 {[%clk 0:01:58]} 29. Nd3 {[%clk 0:02:03]}  g5 {[%clk 0:01:59]} 30. Rxc8 {[%clk 0:02:02]}  Rxc8 {[%clk 0:01:58]} 31. Rc1 {[%clk 0:02:02]}  Rg8 {[%clk 0:01:54]} 32. Nb4 {[%clk 0:01:49]}  g4 {[%clk 0:01:54]} 33. hxg4 {[%clk 0:01:50]}  hxg4 {[%clk 0:01:55]} 34. Rh1 {[%clk 0:00:30]}  gxf3+ {[%clk 0:01:55]} 35. gxf3 {[%clk 0:00:31]}  Rg2+ {[%clk 0:01:54]} 36. Kd3 {[%clk 0:00:31]}  Rf2 {[%clk 0:01:48]} 37. Rh3 {[%clk 0:00:31]}  Kd7 {[%clk 0:01:47]} 38. Nd5 {[%clk 0:00:25]}  Bc5 {[%clk 0:01:44]} 39. a5 {[%clk 0:00:23]}  Ra2 {[%clk 0:01:39]} 40. b6 {[%clk 0:00:23]}  axb6 {[%clk 0:01:39]} 41. axb6 {[%clk 0:00:24]}  Rb2 {[%clk 0:01:13]} 42. Rh7 {[%clk 0:00:22]}  Bxb6 {[%clk 0:01:09]} 43. Rxe7+ {[%clk 0:00:21]}  Kc6 {[%clk 0:01:09]} 44. Rf7 {[%clk 0:00:19]}  Bd8 {[%clk 0:00:58]} 45. Kc4 {[%clk 0:00:18]}  Rc2+ {[%clk 0:00:58]} 46. Kd3 {[%clk 0:00:18]}  Ra2 {[%clk 0:00:58]} 47. Kc4 {[%clk 0:00:18]}  Ra4+ {[%clk 0:00:57]} 48. Kb3 {[%clk 0:00:17]}  Rd4 {[%clk 0:00:57]} 49. Kc3 {[%clk 0:00:17]}  Ba5+ {[%clk 0:00:57]} 50. Kb3 {[%clk 0:00:18]}  Rd1 {[%clk 0:00:48]} 51. Rf8 {[%clk 0:00:18]}  Kc5 {[%clk 0:00:46]} 52. Rf7 {[%clk 0:00:17]}  Rb1+ {[%clk 0:00:40]} 53. Kc2 {[%clk 0:00:17]}  Rf1 {[%clk 0:00:39]} 54. Kd3 {[%clk 0:00:17]}  Ra1 {[%clk 0:00:38]} 55. Rf8 {[%clk 0:00:16]}  Ra3+ {[%clk 0:00:38]} 56. Kc2 {[%clk 0:00:15]}  Kd4 {[%clk 0:00:39]} 57. Kb2 {[%clk 0:00:15]}  Rd3 {[%clk 0:00:37]} 58. Kc2 {[%clk 0:00:16]}  Rd2+ {[%clk 0:00:35]} 59. Kb3 {[%clk 0:00:16]}  Rf2 {[%clk 0:00:36]} 60. Ka4 {[%clk 0:00:16]}  Bd2 {[%clk 0:00:34]} 61. Kb5 {[%clk 0:00:16]}  Bc1 {[%clk 0:00:32]} 62. Kc6 {[%clk 0:00:16]}  Ba3 {[%clk 0:00:33]} 63. Kd7 {[%clk 0:00:16]}  Bc5 {[%clk 0:00:33]} 64. Ke6 {[%clk 0:00:16]}  Kd3 {[%clk 0:00:32]} 65. Rf7 {[%clk 0:00:15]}  Kd4 {[%clk 0:00:31]} 66. Rf8 {[%clk 0:00:15]}  Rh2 {[%clk 0:00:28]} 67. Rf7 {[%clk 0:00:15]}  Rh6+ {[%clk 0:00:28]} 68. Kd7 {[%clk 0:00:15]}  Rh4 {[%clk 0:00:26]} 69. Ke6 {[%clk 0:00:15]}  Kd3 {[%clk 0:00:26]} 70. Rf8 {[%clk 0:00:14]}  Kd4 {[%clk 0:00:24]} 71. Rf7 {[%clk 0:00:14]}  Rh1 {[%clk 0:00:25]} 72. Rf8 {[%clk 0:00:14]}  Ra1 {[%clk 0:00:24]} 73. Rf7 {[%clk 0:00:14]}  Kd3 {[%clk 0:00:24]} 74. Rf8 {[%clk 0:00:13]}  Rh1 {[%clk 0:00:19]} 75. Rf7 {[%clk 0:00:13]}  Re1 {[%clk 0:00:18]} 76. Rf8 {[%clk 0:00:12]}  Ke2 {[%clk 0:00:18]} 77. Nc3+ {[%clk 0:00:09]}  Ke3 {[%clk 0:00:16]} 78. Nd5+ {[%clk 0:00:10]}  Kd4 {[%clk 0:00:16]} 79. Rf7 {[%clk 0:00:10]}  Rh1 {[%clk 0:00:14]} 80. Rf8 {[%clk 0:00:10]}  Ba3 {[%clk 0:00:14]} 81. Rf7 {[%clk 0:00:10]}  Rh6+ {[%clk 0:00:13]} 82. Rf6 {[%clk 0:00:10]}  Rh8 {[%clk 0:00:11]} 83. Rf7 {[%clk 0:00:10]}  Bc5 {[%clk 0:00:12]} 84. Kd7 {[%clk 0:00:09]}  Kd3 {[%clk 0:00:12]} 85. Ke6 {[%clk 0:00:09]}  Ke2 {[%clk 0:00:12]} 86. Nc3+ {[%clk 0:00:07]}  Kf2 {[%clk 0:00:11]} 87. Nd5 {[%clk 0:00:08]}  Rh3 {[%clk 0:00:08]} 88. Rf8 {[%clk 0:00:07]}  Rxf3 {[%clk 0:00:08]} 89. Rxf3+ {[%clk 0:00:07]}  Kxf3 {[%clk 0:00:09]} 90. Kf5 {[%clk 0:00:08]}  Bd4 {[%clk 0:00:07]} 91. Ne7 {[%clk 0:00:08]}  Bc3 {[%clk 0:00:06]} 92. Nd5 {[%clk 0:00:08]}  Bd4 {[%clk 0:00:06]} 93. Nf6 {[%clk 0:00:08]}  Kg3 {[%clk 0:00:06]} 94. Ke6 {[%clk 0:00:07]}  Kf4 {[%clk 0:00:06]} 95. Kxd6 {[%clk 0:00:06]}  Ba1 {[%clk 0:00:05]} 96. Kd5 {[%clk 0:00:06]}  Bb2 {[%clk 0:00:05]} 97. Nd7 {[%clk 0:00:07]}  Ba1 {[%clk 0:00:06]} 98. Nc5 {[%clk 0:00:07]}  Ke3 {[%clk 0:00:06]} 99. Ne6 {[%clk 0:00:08]}  Bb2 {[%clk 0:00:05]} 100. Ng5 {[%clk 0:00:07]}  Kf4 {[%clk 0:00:06]} 101. Nf7 {[%clk 0:00:08]}  Ba1 {[%clk 0:00:05]} 102. Nd8 {[%clk 0:00:08]}  Bb2 {[%clk 0:00:05]} 103. Ne6+ {[%clk 0:00:09]}  Ke3 {[%clk 0:00:06]} 104. Nf8 {[%clk 0:00:07]}  Ba1 {[%clk 0:00:06]} 105. Ng6 {[%clk 0:00:07]}  Bb2 {[%clk 0:00:05]} 106. Nxe5 {[%clk 0:00:07]}  Ba1 {[%clk 0:00:06]} 107. Nc4+ {[%clk 0:00:07]}  Kf4 {[%clk 0:00:06]} 108. Nb6 {[%clk 0:00:07]}  Bb2 {[%clk 0:00:06]} 109. Nd7 {[%clk 0:00:08]}  Ba1 {[%clk 0:00:07]} 110. Nc5 {[%clk 0:00:08]}  Kg5 {[%clk 0:00:05]} 111. Ne6+ {[%clk 0:00:09]}  Kf6 {[%clk 0:00:05]} 112. Kd6 {[%clk 0:00:08]}  Be5+ {[%clk 0:00:04]} 113. Kd5 {[%clk 0:00:08]}  Ba1 {[%clk 0:00:05]} 114. Nf4 {[%clk 0:00:07]}  Ke7 {[%clk 0:00:05]} 115. Nd3 {[%clk 0:00:08]}  Bc3 {[%clk 0:00:05]} 116. Nc5 {[%clk 0:00:07]}  Ba1 {[%clk 0:00:06]} 117. Nb3 {[%clk 0:00:08]}  Bb2 {[%clk 0:00:06]} 118. Nd4 {[%clk 0:00:09]}  Bxd4 {[%clk 0:00:06]} 119. Kxd4 {[%clk 0:00:09]}  Kd6 {[%clk 0:00:07]} 120. e5+ {[%clk 0:00:09]}  Ke6 {[%clk 0:00:08]} 121. Ke4 {[%clk 0:00:09]}  Ke7 {[%clk 0:00:08]} 122. Kd5 {[%clk 0:00:10]}  Kd7 {[%clk 0:00:09]} 123. e6+ {[%clk 0:00:10]}  Ke7 {[%clk 0:00:09]} 124. Ke5 {[%clk 0:00:11]}  Ke8 {[%clk 0:00:10]} 125. Kf5 {[%clk 0:00:12]}  Ke7 {[%clk 0:00:10]} 126. Ke5 {[%clk 0:00:12]}  Ke8 {[%clk 0:00:10]} 127. Kd6 {[%clk 0:00:13]}  Kd8 {[%clk 0:00:10]} 128. Kc6 {[%clk 0:00:13]}  Ke7 {[%clk 0:00:10]} 129. Kd5 {[%clk 0:00:14]}  Ke8 {[%clk 0:00:11]} 130. Ke5 {[%clk 0:00:15]}  Ke7 {[%clk 0:00:11]} 131. Kf5 {[%clk 0:00:15]}  Ke8 {[%clk 0:00:10]} 132. Kf6 {[%clk 0:00:15]}  Kf8 {[%clk 0:00:10]} 133. Kg5 {[%clk 0:00:15]}  Ke7 {[%clk 0:00:11]} 134. Kf5 {[%clk 0:00:15]}  Ke8 {[%clk 0:00:11]} 135. Ke5 {[%clk 0:00:15]}  Ke7 {[%clk 0:00:11]} 136. Kd5 {[%clk 0:00:16]}  Ke8 {[%clk 0:00:11]} 137. Kd6 {[%clk 0:00:16]}  Kd8 {[%clk 0:00:11]} 138. Ke5 {[%clk 0:00:16]}  Ke7 {[%clk 0:00:11]} 1/2-1/2


[Site "https://www.chess.com"]

[Event "Titled Tuesday Blitz July 26 Late 2022"]
[White "Haraguchi, Diego Sashaki"]
[Black "Aravindh, Chithambaram VR."]
[WhiteFideId "22729925"]
[BlackFideId "5072786"]
[WhiteElo "2118"]
[BlackElo "2577"]
[Result "0-1"]
[Round "01"]
[TimeControl "180+1"]
[Date "2022.07.26"]
[WhiteClock "0:00:44"]
[BlackClock "0:00:28"]

1. d4 {[%clk 0:02:57]}  g6 {[%clk 0:02:57]} 2. c4 {[%clk 0:02:58]}  Bg7 {[%clk 0:02:58]} 3. Nf3 {[%clk 0:02:58]}  d6 {[%clk 0:02:57]} 4. Nc3 {[%clk 0:02:59]}  Bg4 {[%clk 0:02:52]} 5. e3 {[%clk 0:02:54]}  Nf6 {[%clk 0:02:49]} 6. Be2 {[%clk 0:02:54]}  O-O {[%clk 0:02:49]} 7. O-O {[%clk 0:02:54]}  Nc6 {[%clk 0:02:48]} 8. h3 {[%clk 0:02:52]}  Bf5 {[%clk 0:02:47]} 9. d5 {[%clk 0:02:50]}  Nb8 {[%clk 0:02:47]} 10. Nd4 {[%clk 0:02:50]}  Bd7 {[%clk 0:02:40]} 11. b3 {[%clk 0:02:46]}  c5 {[%clk 0:02:35]} 12. Nc2 {[%clk 0:02:44]}  Bf5 {[%clk 0:02:30]} 13. Bb2 {[%clk 0:02:43]}  Ne4 {[%clk 0:02:30]} 14. Na4 {[%clk 0:02:35]}  Bxb2 {[%clk 0:02:29]} 15. Nxb2 {[%clk 0:02:35]}  Nc3 {[%clk 0:02:25]} 16. Qd2 {[%clk 0:02:35]}  Nxe2+ {[%clk 0:02:24]} 17. Qxe2 {[%clk 0:02:34]}  Bxc2 {[%clk 0:02:24]} 18. Qxc2 {[%clk 0:02:34]}  Nd7 {[%clk 0:02:25]} 19. Nd3 {[%clk 0:02:33]}  a6 {[%clk 0:02:23]} 20. e4 {[%clk 0:02:24]}  b5 {[%clk 0:02:23]} 21. f4 {[%clk 0:02:22]}  e6 {[%clk 0:02:12]} 22. Rad1 {[%clk 0:02:20]}  exd5 {[%clk 0:02:07]} 23. cxd5 {[%clk 0:02:15]}  Qb6 {[%clk 0:02:01]} 24. Kh2 {[%clk 0:02:12]}  Rae8 {[%clk 0:02:01]} 25. Rde1 {[%clk 0:02:02]}  Qc7 {[%clk 0:02:01]} 26. Qf2 {[%clk 0:01:57]}  a5 {[%clk 0:01:47]} 27. Qg3 {[%clk 0:01:34]}  c4 {[%clk 0:01:44]} 28. Nf2 {[%clk 0:01:29]}  c3 {[%clk 0:01:40]} 29. Nd3 {[%clk 0:01:23]}  Nc5 {[%clk 0:01:24]} 30. Nf2 {[%clk 0:01:16]}  b4 {[%clk 0:01:11]} 31. Ng4 {[%clk 0:01:16]}  Nd7 {[%clk 0:00:56]} 32. e5 {[%clk 0:01:12]}  h5 {[%clk 0:00:56]} 33. Nf6+ {[%clk 0:00:59]}  Nxf6 {[%clk 0:00:53]} 34. exf6 {[%clk 0:01:00]}  Rxe1 {[%clk 0:00:45]} 35. Rxe1 {[%clk 0:01:01]}  c2 {[%clk 0:00:43]} 36. Qe3 {[%clk 0:00:55]}  Rc8 {[%clk 0:00:38]} 37. f5 {[%clk 0:00:51]}  c1=Q {[%clk 0:00:35]} 38. Qg3 {[%clk 0:00:46]}  Q7c3 {[%clk 0:00:28]} 39. Re3 {[%clk 0:00:44]}  Q1xe3 {[%clk 0:00:28]} 0-1


[Site "https://www.chess.com"]